[Event "44th Chess Olympiad Open 2022"]
[Site "Chennai"]
[Date "2022.08.03"]
[Round "6.70"]
[White "Sanches, Casanova Romario"]
[Black "Samuel Merhawi Gebrehiwet"]
[Result "1/2-1/2"]
[WhiteElo "2066"]
[BlackElo "1616"]
[Annotator "NA RC"]
[PlyCount "116"]
[EventDate "2022.??.??"]
[TimeControl "60"]

1. e4 {[%emt 0:00:04]} c5 {[%emt 0:00:15]} 2. Nc3 {[%emt 0:00:07]} Nc6 {
[%emt 0:00:47]} 3. g3 {[%emt 0:00:06]} g6 {[%emt 0:00:27]} 4. Bg2 {[%emt 0:00:
00]} Bg7 {[%emt 0:00:09]} 5. Nge2 {[%emt 0:00:05]} e6 {[%emt 0:00:25]} 6. d3 {
[%emt 0:00:22]} Nge7 {[%emt 0:00:17]} 7. Be3 {[%emt 0:01:00]} b6 {[%emt 0:00:
00]} 8. Qd2 {[%emt 0:00:17]} h6 {[%emt 0:02:08]} 9. O-O {[%emt 0:05:21]} Bb7 {
[%emt 0:00:20]} 10. Rab1 {[%emt 0:07:08]} e5 {[%emt 0:02:50]} 11. f4 {[%emt 0:
00:00]} d6 {[%emt 0:00:40]} 12. Nd5 {[%emt 0:16:08]} Nxd5 {[%emt 0:00:55]} 13.
exd5 {[%emt 0:00:17]} Ne7 {[%emt 0:00:08]} 14. c4 {[%emt 0:12:01]} Nf5 {
[%emt 0:01:16]} 15. Bf2 {[%emt 0:00:18]} h5 {[%emt 0:02:24]} 16. b4 {[%emt 0:
00:00]} cxb4 {[%emt 0:02:28]} 17. Rxb4 {[%emt 0:05:49]} h4 {[%emt 0:00:11]} 18.
d4 {[%emt 0:11:05]} hxg3 {[%emt 0:00:20]} 19. hxg3 {[%emt 0:00:31]} exf4 {
[%emt 0:01:06]} 20. Nxf4 {[%emt 0:04:47]} Qf6 {[%emt 0:00:41]} 21. Re1+ {
[%emt 0:03:57]} Kf8 {[%emt 0:00:09]} 22. c5 {[%emt 0:01:17]} g5 {[%emt 0:00:42]
} 23. Ne6+ {[%emt 0:12:55]} fxe6 {[%emt 0:03:24]} 24. Rxe6 {[%emt 0:00:02]} Qf7
{[%emt 0:00:54]} 25. Qxg5 {[%emt 0:00:32]} Rh5 {[%emt 0:02:10]} 26. Qg6 {
[%emt 0:05:36]} Qxg6 {[%emt 0:00:55]} 27. Rxg6 {[%emt 0:00:03]} dxc5 {[%emt 0:
00:00]} 28. dxc5 {[%emt 0:00:46]} Ne7 {[%emt 0:00:42]} 29. c6 {[%emt 0:09:17]}
Nxg6 {[%emt 0:02:17]} 30. cxb7 {[%emt 0:00:03]} Rb8 {[%emt 0:00:38]} 31. d6 {
[%emt 0:00:57]} Be5 {[%emt 0:00:33]} 32. Rb5 {[%emt 0:00:38]} Rg5 {[%emt 0:00:
00]} 33. a4 {[%emt 0:00:14]} Bf6 {[%emt 0:02:21]} 34. Rb1 {[%emt 0:00:41]} Ne5
{[%emt 0:00:04]} 35. Rc1 {[%emt 0:00:27]} Nd7 {[%emt 0:02:28]} 36. Rc8+ {
[%emt 0:00:15]} Kf7 {[%emt 0:00:29]} 37. Rc7 {[%emt 0:00:28]} Ke8 {[%emt 0:00:
00]} 38. Bc6 {[%emt 0:00:29]} Rg7 {[%emt 0:00:09]} 39. Rc8+ {[%emt 0:00:41]}
Kf7 {[%emt 0:00:14]} 40. Bxd7 {[%emt 0:00:27]} Rxb7 {[%emt 0:01:30]} 41. Bc6 {
[%emt 0:30:50]} Ke6 {[%emt 0:30:34]} 42. Bxb7 {[%emt 0:00:00]} Rxb7 {[%emt 0:
00:00]} 43. Rc7 {[%emt 0:00:00]} Rxc7 {[%emt 0:00:00]} 44. dxc7 {[%emt 0:00:00]
} Kd7 {[%emt 0:00:00]} 45. Kf1 {[%emt 0:00:00]} Kxc7 {[%emt 0:00:00]} 46. Ke2 {
[%emt 0:00:00]} Kc6 {[%emt 0:00:00]} 47. Kd3 {[%emt 0:00:00]} Kd5 {[%emt 0:00:
00]} 48. Be3 {[%emt 0:00:00]} Be5 {[%emt 0:00:00]} 49. g4 {[%emt 0:00:00]} Bg7
{[%emt 0:00:00]} 50. g5 {[%emt 0:00:00]} Kc6 {[%emt 0:00:00]} 51. g6 {[%emt 0:
00:00]} Kd5 {[%emt 0:00:00]} 52. Bf2 {[%emt 0:00:00]} Bf6 {[%emt 0:00:00]} 53.
Be3 {[%emt 0:00:00]} Bg7 {[%emt 0:00:00]} 54. Bd2 {[%emt 0:00:00]} a6 {[%emt 0:
00:00]} 55. Bc3 {[%emt 0:02:13]} Bxc3 {[%emt 0:00:00]} 56. Kxc3 {[%emt 0:00:03]
} Ke6 {[%emt 0:00:00]} 57. Kd4 {[%emt 0:00:06]} b5 {[%emt 0:00:00]} 58. axb5 {
[%emt 0:00:10]} axb5 {[%emt 0:00:00]} 1/2-1/2

[Event "44th Chess Olympiad Open 2022"]
[Site "Chennai"]
[Date "2022.08.03"]
[Round "6.70"]
[White "Gajadin, Dewperkash"]
[Black "Kibrom Weldegebriel Beraki"]
[Result "0-1"]
[WhiteElo "1990"]
[BlackElo "1793"]
[Annotator "NA RC"]
[PlyCount "114"]
[EventDate "2022.??.??"]
[TimeControl "60"]

1. e4 {[%emt 0:00:04]} c5 {[%emt 0:00:05]} 2. c3 {[%emt 0:00:20]} e6 {[%emt 0:
00:00]} 3. d4 {[%emt 0:00:09]} cxd4 {[%emt 0:01:43]} 4. cxd4 {[%emt 0:00:04]}
Nf6 {[%emt 0:00:15]} 5. Bd3 {[%emt 0:01:19]} Nc6 {[%emt 0:01:07]} 6. e5 {
[%emt 0:14:24]} Nd5 {[%emt 0:00:44]} 7. Ne2 {[%emt 0:02:06]} d6 {[%emt 0:01:02]
} 8. exd6 {[%emt 0:06:46]} Bxd6 {[%emt 0:00:22]} 9. Nbc3 {[%emt 0:04:13]} Nf6 {
[%emt 0:01:33]} 10. h3 {[%emt 0:03:52]} h6 {[%emt 0:02:53]} 11. a3 {[%emt 0:00:
00]} O-O {[%emt 0:00:51]} 12. O-O {[%emt 0:02:06]} b6 {[%emt 0:02:09]} 13. Be3
{[%emt 0:09:59]} Bb7 {[%emt 0:01:58]} 14. Ne4 {[%emt 0:05:37]} Be7 {[%emt 0:00:
00]} 15. Nxf6+ {[%emt 0:03:28]} Bxf6 {[%emt 0:00:21]} 16. Be4 {[%emt 0:03:55]}
Qe7 {[%emt 0:03:29]} 17. Rc1 {[%emt 0:08:42]} Nxd4 {[%emt 0:04:44]} 18. Nxd4 {
[%emt 0:12:50]} Bxe4 {[%emt 0:01:03]} 19. Qg4 {[%emt 0:01:07]} Bg6 {[%emt 0:00:
00]} 20. b4 {[%emt 0:03:18]} Qd6 {[%emt 0:08:54]} 21. Rfd1 {[%emt 0:01:32]} Qd5
{[%emt 0:06:09]} 22. Nf3 {[%emt 0:02:46]} Qb3 {[%emt 0:04:45]} 23. h4 {[%emt 0:
00:00]} Rfd8 {[%emt 0:03:15]} 24. Rxd8+ {[%emt 0:01:40]} Rxd8 {[%emt 0:00:15]}
25. h5 {[%emt 0:00:40]} Bf5 {[%emt 0:01:15]} 26. Qg3 {[%emt 0:00:23]} Kh7 {
[%emt 0:09:39]} 27. Qc7 {[%emt 0:01:23]} Qxa3 {[%emt 0:04:56]} 28. Qxf7 {
[%emt 0:00:47]} a5 {[%emt 0:00:51]} 29. Rc7 {[%emt 0:00:37]} Qa1+ {[%emt 0:00:
00]} 30. Kh2 {[%emt 0:00:11]} axb4 {[%emt 0:00:30]} 31. g3 {[%emt 0:01:07]} Rd1
{[%emt 0:00:56]} 32. g4 {[%emt 0:00:16]} Be5+ {[%emt 0:11:00]} 33. Nxe5 {
[%emt 0:00:16]} Qxe5+ {[%emt 0:00:28]} 34. Kg2 {[%emt 0:00:33]} Bd3 {[%emt 0:
00:00]} 35. Rc8 {[%emt 0:00:52]} Bf1+ {[%emt 0:01:48]} 36. Kf3 {[%emt 0:00:21]}
Qf6+ {[%emt 0:03:58]} 37. Qxf6 {[%emt 0:00:01]} gxf6 {[%emt 0:00:13]} 38. Rc7+
{[%emt 0:00:05]} Kg8 {[%emt 0:00:28]} 39. Bxh6 {[%emt 0:00:34]} b3 {[%emt 0:00:
00]} 40. Bc1 {[%emt 0:00:54]} Rxc1 {[%emt 0:02:16]} 41. Rxc1 {[%emt 0:30:05]}
Bd3 {[%emt 0:30:08]} 42. Rc8+ {[%emt 0:01:17]} Kg7 {[%emt 0:00:39]} 43. Rb8 {
[%emt 0:00:00]} b5 {[%emt 0:00:00]} 44. g5 {[%emt 0:00:00]} fxg5 {[%emt 0:00:
00]} 45. Kg4 {[%emt 0:01:06]} b2 {[%emt 0:00:00]} 46. Kxg5 {[%emt 0:00:41]}
b1=Q {[%emt 0:00:00]} 47. Rb7+ {[%emt 0:00:33]} Kg8 {[%emt 0:00:00]} 48. Rb8+ {
[%emt 0:00:18]} Kf7 {[%emt 0:00:00]} 49. Rb7+ {[%emt 0:00:20]} Ke8 {[%emt 0:00:
00]} 50. Rb8+ {[%emt 0:01:04]} Kd7 {[%emt 0:00:00]} 51. Rb7+ {[%emt 0:00:24]}
Kc6 {[%emt 0:00:00]} 52. Rf7 {[%emt 0:00:43]} Qg1+ {[%emt 0:00:00]} 53. Kh6 {
[%emt 0:00:09]} Qg8 {[%emt 0:00:00]} 54. Rf6 {[%emt 0:00:48]} Kd6 {[%emt 0:00:
00]} 55. f4 {[%emt 0:00:19]} Qh8+ {[%emt 0:00:00]} 56. Kg5 {[%emt 0:00:06]}
Qg7+ {[%emt 0:00:00]} 57. Rg6 {[%emt 0:00:37]} Bxg6 {[%emt 0:00:00]} 0-1

[Event "44th Chess Olympiad Open 2022"]
[Site "Chennai"]
[Date "2022.08.03"]
[Round "6.70"]
[White "Asante Debesai Zerabruk"]
[Black "Giasi, Viresh"]
[Result "0-1"]
[WhiteElo "1785"]
[BlackElo "2006"]
[Annotator "NA RC"]
[PlyCount "110"]
[EventDate "2022.??.??"]
[TimeControl "60"]

1. e4 {[%emt 0:00:07]} c5 {[%emt 0:00:42]} 2. Nf3 {[%emt 0:00:05]} e6 {[%emt 0:
00:00]} 3. d3 {[%emt 0:02:43]} Nc6 {[%emt 0:00:58]} 4. g3 {[%emt 0:00:04]} h5 {
[%emt 0:07:45]} 5. h4 {[%emt 0:12:50]} d5 {[%emt 0:01:51]} 6. Nbd2 {[%emt 0:00:
00]} Nf6 {[%emt 0:01:04]} 7. Bg2 {[%emt 0:00:48]} dxe4 {[%emt 0:07:21]} 8. dxe4
{[%emt 0:00:07]} e5 {[%emt 0:00:05]} 9. O-O {[%emt 0:04:43]} Bg4 {[%emt 0:00:
00]} 10. Re1 {[%emt 0:06:14]} Qc7 {[%emt 0:16:18]} 11. c3 {[%emt 0:04:41]} Be7
{[%emt 0:06:10]} 12. Qc2 {[%emt 0:02:12]} Nh7 {[%emt 0:01:07]} 13. Nc4 {
[%emt 0:02:56]} O-O-O {[%emt 0:04:27]} 14. Ne3 {[%emt 0:07:27]} Bxf3 {[%emt 0:
00:00]} 15. Bxf3 {[%emt 0:00:02]} g5 {[%emt 0:00:08]} 16. Nf5 {[%emt 0:28:07]}
gxh4 {[%emt 0:00:26]} 17. gxh4 {[%emt 0:00:39]} Nf8 {[%emt 0:14:39]} 18. Rd1 {
[%emt 0:10:19]} Ng6 {[%emt 0:03:19]} 19. Rxd8+ {[%emt 0:03:23]} Qxd8 {[%emt 0:
00:00]} 20. Qe2 {[%emt 0:05:21]} Nxh4 {[%emt 0:01:07]} 21. Nxh4 {[%emt 0:00:35]
} Bxh4 {[%emt 0:00:07]} 22. Bxh5 {[%emt 0:00:47]} Bxf2+ {[%emt 0:04:50]} 23.
Qxf2 {[%emt 0:02:48]} Rxh5 {[%emt 0:00:09]} 24. Be3 {[%emt 0:01:23]} Qg8+ {
[%emt 0:01:05]} 25. Qg2 {[%emt 0:00:18]} Qxg2+ {[%emt 0:03:00]} 26. Kxg2 {
[%emt 0:00:02]} b6 {[%emt 0:00:22]} 27. Rf1 {[%emt 0:00:35]} Rh7 {[%emt 0:00:
00]} 28. Rf5 {[%emt 0:00:43]} Kd7 {[%emt 0:00:17]} 29. a4 {[%emt 0:00:12]} Ke6
{[%emt 0:00:10]} 30. Bg5 {[%emt 0:01:01]} Rg7 {[%emt 0:01:12]} 31. Kf3 {
[%emt 0:00:01]} Rg6 {[%emt 0:00:06]} 32. Be3 {[%emt 0:01:03]} Rf6 {[%emt 0:00:
00]} 33. Rxf6+ {[%emt 0:00:12]} Kxf6 {[%emt 0:00:02]} 34. Kg4 {[%emt 0:00:20]}
c4 {[%emt 0:00:18]} 35. Bg5+ {[%emt 0:00:37]} Ke6 {[%emt 0:00:12]} 36. Be3 {
[%emt 0:00:14]} Na5 {[%emt 0:00:41]} 37. Bf2 {[%emt 0:01:04]} Nb3 {[%emt 0:00:
00]} 38. Be3 {[%emt 0:00:09]} Nc5 {[%emt 0:00:17]} 39. Bxc5 {[%emt 0:01:22]}
bxc5 {[%emt 0:00:02]} 40. Kg5 {[%emt 0:00:21]} a5 {[%emt 0:00:47]} 41. Kg4 {
[%emt 0:06:09]} Kf6 {[%emt 0:00:06]} 42. Kh5 {[%emt 0:00:52]} Kg7 {[%emt 0:00:
00]} 43. Kg5 {[%emt 0:04:56]} f6+ {[%emt 0:00:05]} 44. Kf5 {[%emt 0:00:16]} Kf7
{[%emt 0:00:01]} 45. Kg4 {[%emt 0:04:13]} Kg6 {[%emt 0:00:03]} 46. Kf3 {
[%emt 0:03:41]} Kg5 {[%emt 0:00:09]} 47. Kg3 {[%emt 0:01:05]} f5 {[%emt 0:00:
00]} 48. exf5 {[%emt 0:01:16]} Kxf5 {[%emt 0:00:06]} 49. Kf3 {[%emt 0:00:56]}
e4+ {[%emt 0:00:02]} 50. Kg3 {[%emt 0:02:38]} Kg5 {[%emt 0:00:54]} 51. Kf2 {
[%emt 0:01:43]} Kf4 {[%emt 0:00:03]} 52. Ke2 {[%emt 0:01:07]} e3 {[%emt 0:00:
00]} 53. Ke1 {[%emt 0:02:21]} Kf3 {[%emt 0:00:04]} 54. Kf1 {[%emt 0:00:16]} e2+
{[%emt 0:00:02]} 55. Ke1 {[%emt 0:00:08]} Ke3 {[%emt 0:00:01]} 0-1

[Event "44th Chess Olympiad Open 2022"]
[Site "Chennai"]
[Date "2022.08.03"]
[Round "6.71"]
[White "Aziz, Husain"]
[Black "Mohamed Ali Djama"]
[Result "1-0"]
[WhiteElo "2380"]
[BlackElo "1629"]
[Annotator "TA"]
[PlyCount "49"]
[EventDate "2022.??.??"]
[TimeControl "60"]

{[%evp 10,49,10,10,35,31,35,37,61,64,68,64,89,77,109,102,108,95,97,108,330,192,
204,184,442,442,433,426,410,212,208,184,194,189,577,565,510,490,467,472,389,
379]} 1. d4 {[%emt 0:00:04]} Nf6 {[%emt 0:00:07]} 2. c4 {[%emt 0:00:08]} e6 {
[%emt 0:00:21]} 3. Nf3 {[%emt 0:00:10]} d5 {[%emt 0:00:06]} 4. Nc3 {[%emt 0:00:
00]} Bb4 {[%emt 0:00:07]} 5. Qa4+ {[%emt 0:01:30]} Nc6 {[%emt 0:00:08]} 6. e3 {
[%emt 0:01:22]} Ne4 {[%emt 0:00:21] D38: Queen's Gambit Declined: Ragozin
Defence (4 Nf3 Bb4).} 7. Qc2 {[%emt 0:02:15]} O-O {[%emt 0:02:59]} 8. Bd3 {
[%emt 0:00:25]} f5 {[%emt 0:01:26] White is slightly better.} 9. O-O {[%emt 0:
00:00]} Bxc3 {[%emt 0:03:47]} 10. bxc3 {[%emt 0:02:59]} b6 {[%emt 0:07:24] [#]}
11. Ba3 $146 {[%emt 0:02:50]} ({Predecessor:} 11. Rb1 Ba6 12. cxd5 Bxd3 13.
Qxd3 exd5 14. c4 Na5 15. cxd5 Qxd5 16. Ba3 Rfd8 17. Qc2 {1-0 (27) Strinic,H 
(2113)-Dedic,N (1963) Sarajevo 2018}) 11... Rf6 {[%emt 0:07:28]} 12. cxd5 {
[%emt 0:09:44]} exd5 {[%emt 0:09:11]} 13. c4 {[%emt 0:00:07]} Be6 {[%emt 0:00:
00]} 14. Rac1 {[%emt 0:00:46]} g5 $2 {[%emt 0:09:28] [#]} (14... a5 $16) 15.
Bxe4 {[%emt 0:06:35]} (15. g4 $142) 15... fxe4 $18 {[%emt 0:06:27]} 16. Nxg5 {
[%emt 0:00:17]} Qd7 {[%emt 0:05:06]} (16... Bf5 {is a better defense.} 17. cxd5
Qxd5) 17. Nxe6 {[%emt 0:02:45]} ({Not} 17. cxd5 Bxd5 18. Nxe4 Rg6 $18) 17...
Qxe6 {[%emt 0:02:21]} 18. cxd5 {[%emt 0:00:09]} Qxd5 {[%emt 0:00:08]} 19. Qc4 {
[%emt 0:00:13]} (19. f3 $142 exf3 20. Rxf3 Rxf3 21. gxf3) 19... Rd8 {[%emt 0:
00:00]} 20. f3 {[%emt 0:05:30]} exf3 {[%emt 0:02:30]} 21. Rxf3 {[%emt 0:00:24]
[%cal Yf1f3,Yf3f8,Yf8c8]} Rg6 $2 {[%emt 0:03:30] [#]} (21... Qxc4 22. Rxc4 Re6
23. Rg3+ Kf7) 22. Rf8+ $1 {[%emt 0:01:00]} Kg7 {[%emt 0:00:00][%csl Gg6][%cal
Rd5g2]} 23. Qxd5 {[%emt 0:00:07]} Rxd5 {[%emt 0:00:12]} 24. Rc8 {[%emt 0:00:05]
} Rd7 {[%emt 0:01:32]} 25. d5 {[%emt 0:02:08] Black got outplayed after the
opening. Weighted Error Value: White=0.24 (precise) / Black=0.66} 1-0

[Event "44th Chess Olympiad Open 2022"]
[Site "Chennai"]
[Date "2022.08.03"]
[Round "6.71"]
[White "Yousuf M M Al Mutawa"]
[Black "Mohamed Ali Dima"]
[Result "1-0"]
[WhiteElo "2120"]
[BlackElo "1582"]
[Annotator "NA RC"]
[PlyCount "63"]
[EventDate "2022.??.??"]
[TimeControl "60"]

1. e4 {[%emt 0:00:01]} d6 {[%emt 0:00:35]} 2. d4 {[%emt 0:00:10]} Nf6 {[%emt 0:
00:00]} 3. Bd3 {[%emt 0:00:23]} Nc6 {[%emt 0:01:12]} 4. c3 {[%emt 0:01:34]} a6
{[%emt 0:00:26]} 5. h3 {[%emt 0:01:16]} e5 {[%emt 0:00:16]} 6. Nf3 {[%emt 0:00:
00]} Bd7 {[%emt 0:06:37]} 7. O-O {[%emt 0:01:39]} h6 {[%emt 0:02:42]} 8. Re1 {
[%emt 0:00:59]} g5 {[%emt 0:00:28]} 9. Nbd2 {[%emt 0:01:27]} g4 {[%emt 0:00:41]
} 10. hxg4 {[%emt 0:01:45]} Bxg4 {[%emt 0:00:44]} 11. Qb3 {[%emt 0:00:24]} b5 {
[%emt 0:02:27]} 12. c4 {[%emt 0:02:55]} Nxd4 {[%emt 0:04:12]} 13. Nxd4 {
[%emt 0:00:23]} exd4 {[%emt 0:00:03]} 14. cxb5 {[%emt 0:00:42]} Rb8 {[%emt 0:
00:00]} 15. Qa4 {[%emt 0:07:10]} Bd7 {[%emt 0:01:22]} 16. Qxd4 {[%emt 0:01:45]}
axb5 {[%emt 0:00:45]} 17. e5 {[%emt 0:02:47]} Qe7 {[%emt 0:04:19]} 18. Nf3 {
[%emt 0:00:59]} dxe5 {[%emt 0:00:03]} 19. Rxe5 {[%emt 0:05:56]} Be6 {[%emt 0:
00:00]} 20. Bxb5+ {[%emt 0:02:25]} Nd7 {[%emt 0:02:29]} 21. Bxd7+ {[%emt 0:00:
00]} Qxd7 {[%emt 0:00:10]} 22. Rxe6+ {[%emt 0:06:11]} fxe6 {[%emt 0:00:02]} 23.
Qxh8 {[%emt 0:00:41]} Qd1+ {[%emt 0:00:43]} 24. Kh2 {[%emt 0:00:02]} Rb5 {
[%emt 0:01:24]} 25. Qxf8+ {[%emt 0:00:25]} Kxf8 {[%emt 0:13:27]} 26. Bxh6+ {
[%emt 0:00:09]} Kf7 {[%emt 0:00:21]} 27. Rxd1 {[%emt 0:00:10]} Rh5+ {[%emt 0:
00:00]} 28. Kg3 {[%emt 0:00:49]} Rxh6 {[%emt 0:00:27]} 29. Rd7+ {[%emt 0:00:02]
} Ke8 {[%emt 0:02:15]} 30. Rxc7 {[%emt 0:00:09]} Rh5 {[%emt 0:00:32]} 31. Nd4 {
[%emt 0:00:37]} Re5 {[%emt 0:00:11]} 32. Re7+ {[%emt 0:00:18]} 1-0

[Event "44th Chess Olympiad Open 2022"]
[Site "Chennai"]
[Date "2022.08.03"]
[Round "6.71"]
[White "Ismael Mohamed Goumaneh"]
[Black "Erfan Mohamad Firdaus"]
[Result "0-1"]
[WhiteElo "1473"]
[BlackElo "1294"]
[Annotator "NA RC"]
[PlyCount "72"]
[EventDate "2022.??.??"]
[TimeControl "60"]

1. e4 {[%emt 0:00:49]} c5 {[%emt 0:00:11]} 2. Nf3 {[%emt 0:00:24]} d6 {[%emt 0:
00:00]} 3. d4 {[%emt 0:00:30]} cxd4 {[%emt 0:00:15]} 4. Nxd4 {[%emt 0:00:02]}
Nf6 {[%emt 0:00:13]} 5. Nc3 {[%emt 0:00:03]} a6 {[%emt 0:00:08]} 6. Be3 {
[%emt 0:01:23]} e5 {[%emt 0:00:28]} 7. Nb3 {[%emt 0:00:12]} Be7 {[%emt 0:00:27]
} 8. f3 {[%emt 0:00:15]} Be6 {[%emt 0:00:34]} 9. Qd2 {[%emt 0:00:10]} Nbd7 {
[%emt 0:00:40]} 10. O-O-O {[%emt 0:00:18]} Qc7 {[%emt 0:00:30]} 11. Kb1 {
[%emt 0:00:04]} Rc8 {[%emt 0:01:06]} 12. g4 {[%emt 0:00:29]} b5 {[%emt 0:04:58]
} 13. g5 {[%emt 0:02:32]} Nh5 {[%emt 0:00:38]} 14. Rg1 {[%emt 0:00:18]} O-O {
[%emt 0:03:05]} 15. Qf2 {[%emt 0:02:08]} Nc5 {[%emt 0:08:20]} 16. h4 {[%emt 0:
00:00]} b4 {[%emt 0:14:55]} 17. Nd5 {[%emt 0:00:41]} Bxd5 {[%emt 0:00:39]} 18.
exd5 {[%emt 0:00:03]} a5 {[%emt 0:01:06]} 19. Bb5 {[%emt 0:01:21]} Rfd8 {
[%emt 0:03:27]} 20. Bc6 {[%emt 0:13:59]} Qa7 {[%emt 0:00:20]} 21. Rg4 {[%emt 0:
00:00]} Rb8 {[%emt 0:04:53]} 22. Nxc5 {[%emt 0:01:46]} dxc5 {[%emt 0:00:32]}
23. Rc4 {[%emt 0:00:15]} Rbc8 {[%emt 0:00:57]} 24. Bxc5 {[%emt 0:01:01]} Qa6 {
[%emt 0:12:21]} 25. Bxe7 {[%emt 0:15:38]} Qxc4 {[%emt 0:06:59]} 26. Bxd8 {
[%emt 0:00:04]} Rxd8 {[%emt 0:00:23]} 27. Re1 {[%emt 0:00:58]} Nf4 {[%emt 0:00:
00]} 28. b3 {[%emt 0:02:16]} Qc3 {[%emt 0:01:14]} 29. Rd1 {[%emt 0:04:52]} g6 {
[%emt 0:05:34]} 30. Qb6 {[%emt 0:01:58]} Ne6 {[%emt 0:00:56]} 31. Rd3 {[%emt 0:
00:00]} Qe1+ {[%emt 0:04:51]} 32. Kb2 {[%emt 0:01:15]} Kg7 {[%emt 0:00:24]} 33.
Qxa5 {[%emt 0:00:39]} Nf4 {[%emt 0:00:28]} 34. Qb5 {[%emt 0:06:26]} Ne2 {
[%emt 0:01:15]} 35. Rd1 {[%emt 0:04:47]} Qxd1 {[%emt 0:00:29]} 36. Qxb4 {
[%emt 0:00:03]} Qc1# {[%emt 0:00:15]} 0-1

[Event "44th Chess Olympiad Open 2022"]
[Site "Chennai"]
[Date "2022.08.03"]
[Round "6.73"]
[White "Coulibaly, Abdoulaye"]
[Black "Veer Gandhi"]
[Result "1-0"]
[WhiteElo "1936"]
[BlackElo "1545"]
[Annotator "NA RC"]
[PlyCount "96"]
[EventDate "2022.??.??"]
[TimeControl "60"]

1. e4 {[%emt 0:00:08]} e5 {[%emt 0:00:08]} 2. Nf3 {[%emt 0:00:12]} Nc6 {
[%emt 0:00:15]} 3. Bc4 {[%emt 0:00:13]} Bc5 {[%emt 0:00:08]} 4. O-O {[%emt 0:
00:00]} d6 {[%emt 0:03:12]} 5. h3 {[%emt 0:01:08]} Nf6 {[%emt 0:00:42]} 6. c3 {
[%emt 0:00:30]} Nxe4 {[%emt 0:32:26]} 7. d4 {[%emt 0:00:36]} Bb6 {[%emt 0:00:
00]} 8. Qe2 {[%emt 0:02:19]} d5 {[%emt 0:05:34]} 9. Bb5 {[%emt 0:00:54]} O-O {
[%emt 0:02:37]} 10. Bxc6 {[%emt 0:00:26]} bxc6 {[%emt 0:00:13]} 11. Nxe5 {
[%emt 0:00:17]} c5 {[%emt 0:02:48]} 12. Be3 {[%emt 0:00:52]} cxd4 {[%emt 0:00:
00]} 13. Bxd4 {[%emt 0:00:37]} c5 {[%emt 0:00:37]} 14. Be3 {[%emt 0:00:42]} Qf6
{[%emt 0:01:18]} 15. Ng4 {[%emt 0:00:21]} Qg6 {[%emt 0:02:10]} 16. Ne5 {
[%emt 0:06:13]} Qf6 {[%emt 0:03:35]} 17. Ng4 {[%emt 0:00:22]} Qd6 {[%emt 0:00:
00]} 18. Nd2 {[%emt 0:01:13]} f5 {[%emt 0:00:24]} 19. Nxe4 {[%emt 0:00:22]}
dxe4 {[%emt 0:06:20]} 20. Rad1 {[%emt 0:00:36]} Qe6 {[%emt 0:01:33]} 21. Nh2 {
[%emt 0:02:42]} Bb7 {[%emt 0:05:21]} 22. Bf4 {[%emt 0:08:24]} g5 {[%emt 0:00:
00]} 23. Bxg5 {[%emt 0:02:15]} Rf7 {[%emt 0:04:55]} 24. Bf4 {[%emt 0:00:37]}
Bc7 {[%emt 0:02:27]} 25. Qe3 {[%emt 0:03:55]} Bxf4 {[%emt 0:00:52]} 26. Qxf4 {
[%emt 0:00:03]} Raf8 {[%emt 0:04:42]} 27. Rd6 {[%emt 0:01:06]} Qxa2 {[%emt 0:
00:00]} 28. Rfd1 {[%emt 0:00:41]} Qxb2 {[%emt 0:01:27]} 29. Rd7 {[%emt 0:02:18]
} Qxc3 {[%emt 0:00:46]} 30. Rxf7 {[%emt 0:00:18]} Rxf7 {[%emt 0:00:22]} 31.
Rd8+ {[%emt 0:00:22]} Rf8 {[%emt 0:00:25]} 32. Rxf8+ {[%emt 0:00:15]} Kxf8 {
[%emt 0:00:10]} 33. Qb8+ {[%emt 0:00:04]} Kg7 {[%emt 0:00:53]} 34. Qxb7+ {
[%emt 0:00:03]} Kg6 {[%emt 0:00:13]} 35. Qxa7 {[%emt 0:01:49]} c4 {[%emt 0:00:
00]} 36. Nf1 {[%emt 0:00:28]} Qd3 {[%emt 0:01:00]} 37. Qb6+ {[%emt 0:01:01]}
Kf7 {[%emt 0:00:16]} 38. Qb7+ {[%emt 0:00:28]} Kg6 {[%emt 0:00:19]} 39. Ne3 {
[%emt 0:00:10]} c3 {[%emt 0:02:43]} 40. Qc6+ {[%emt 0:00:30]} Kf7 {[%emt 0:00:
00]} 41. Qc7+ {[%emt 0:30:35]} Ke6 {[%emt 0:30:33]} 42. Qxh7 {[%emt 0:01:40]}
c2 {[%emt 0:00:00]} 43. Qxf5+ {[%emt 0:00:00]} Ke7 {[%emt 0:00:00]} 44. Qc5+ {
[%emt 0:00:00]} Kf7 {[%emt 0:00:00]} 45. Qxc2 {[%emt 0:00:00]} Qd6 {[%emt 0:00:
00]} 46. Qxe4 {[%emt 0:00:00]} Kf8 {[%emt 0:00:00]} 47. Qf3+ {[%emt 0:00:00]}
Ke8 {[%emt 0:00:00]} 48. Qa8+ {[%emt 0:00:00]} Ke7 {[%emt 0:00:00]} 1-0